bitfinex/quotes_BTCUSD_20220405
["timestamp","ask_amount","ask_price","bid_price","bid_amount"]
[1649169030699,0.03967,45939.0,45937.0,0.40357633]
[1649169031157,0.03967,45939.0,45938.0,0.01087713]
[1649169031254,0.03967,45939.0,45937.0,0.40357633]
[1649169031454,0.03967,45939.0,45936.0,0.48594454]
[1649169032509,0.03967,45939.0,45937.0,0.56695594]
[1649169032611,0.03967,45939.0,45938.0,0.01087903]
[1649169032709,0.03967,45939.0,45938.0,0.05087903]
[1649169033458,0.03967,45939.0,45938.0,0.70837903]
[1649169033758,0.03967,45939.0,45938.0,0.05087903]
[1649169033858,0.03967,45939.0,45938.0,0.70837903]
[1649169033960,0.03967,45939.0,45938.0,0.05087903]
[1649169034991,0.03967,45939.0,45938.0,0.04]
[1649169035791,0.04367,45943.0,45938.0,0.04]
[1649169035891,0.054405,45941.0,45938.0,0.04]
[1649169036092,0.054405,45941.0,45938.0,0.27193216]
[1649169036197,0.098066,45943.0,45938.0,0.27193216]
[1649169036292,0.098066,45943.0,45940.0,0.23193216]
[1649169036497,0.098066,45943.0,45940.0,0.27193216]
[1649169036994,0.098066,45943.0,45941.0,0.054397]
[1649169037094,0.054396,45943.0,45941.0,0.054397]
[1649169037198,0.052,45944.0,45941.0,0.3030601]
[1649169037297,0.05,45943.0,45941.0,0.3030601]
[1649169037394,0.052,45944.0,45941.0,0.3030601]
[1649169037597,0.052,45944.0,45942.0,0.00104839]
[1649169037695,0.052,45944.0,45941.0,0.3030601]
[1649169037795,0.052,45944.0,45941.0,0.42496625]
[1649169037893,0.052,45944.0,45942.0,0.000564]
[1649169038096,0.052,45944.0,45943.0,0.23193216]
[1649169038639,0.002,45944.0,45943.0,0.23193216]
[1649169038741,0.0107,45944.0,45943.0,0.23193216]
[1649169039042,0.002,45944.0,45943.0,0.23193216]
[1649169039193,0.00628678,45949.0,45944.0,0.05439077]
[1649169039291,0.00628678,45949.0,45946.0,0.054391]
[1649169039394,0.05439,45947.0,45943.0,0.10878153]
[1649169039495,0.05439,45947.0,45936.0,0.23193216]
[1649169039699,0.10439,45947.0,45936.0,0.23193216]
[1649169039993,0.10439,45947.0,45931.0,0.23193216]
[1649169040104,0.10439,45947.0,45930.0,0.04]
[1649169040293,0.10439,45947.0,45932.0,0.23193216]
[1649169040395,0.25408758,45944.0,45936.0,0.22627351]
[1649169040494,0.054408,45943.0,45936.0,0.37862565]
[1649169040645,0.104408,45943.0,45936.0,0.22627351]
[1649169040761,0.158813,45943.0,45936.0,0.22627351]
[1649169041399,0.104408,45943.0,45936.0,0.22713094]
[1649169041497,0.05,45943.0,45937.0,0.108796]
[1649169041599,0.05,45943.0,45938.0,0.23193216]
[1649169041745,0.00018806,45944.0,45939.0,0.30181976]
[1649169041947,0.00018806,45944.0,45943.0,0.23193216]
[1649169042190,0.00018806,45944.0,45943.0,0.51211441]
[1649169042393,0.00018806,45944.0,45943.0,0.61211441]
[1649169042590,0.00018806,45944.0,45943.0,0.66649941]
[1649169042794,0.00018806,45944.0,45943.0,0.72088567]
[1649169043091,0.00018806,45944.0,45943.0,0.48895351]
[1649169043596,0.0867,45944.0,45943.0,0.48895351]
[1649169043694,0.0867,45944.0,45943.0,0.72088567]
[1649169043796,0.1867,45944.0,45943.0,0.72088567]
[1649169044698,0.18688806,45944.0,45943.0,0.72088567]
[1649169045302,0.18688806,45944.0,45943.0,0.10877126]
[1649169045402,0.18688806,45944.0,45943.0,0.05438626]
[1649169045502,0.18688806,45944.0,45938.0,0.10879614]
[1649169045503,0.24129306,45944.0,45938.0,0.10879614]
[1649169045653,0.24129306,45944.0,45930.0,0.23193216]
[1649169046252,0.24129306,45944.0,45927.0,0.1]
[1649169046354,0.30652801,45943.0,45934.0,0.54035437]
[1649169046452,0.19559006,45944.0,45937.0,0.05440345]
[1649169046656,0.054405,45941.0,45937.0,0.05440345]
[1649169046854,0.05,45942.0,45937.0,0.05440345]
[1649169046957,0.05,45942.0,45940.0,0.11753465]
[1649169047059,0.05,45942.0,45934.0,0.40842221]
[1649169047154,0.10018806,45944.0,45941.0,0.04]
[1649169047303,0.05018806,45944.0,45941.0,0.04]
[1649169047409,0.10018806,45944.0,45941.0,0.04]
[1649169047505,0.05018806,45944.0,45942.0,0.2851739]
[1649169047606,0.10018806,45944.0,45943.0,0.23193216]
[1649169047757,0.05018806,45944.0,45943.0,0.04]
[1649169047954,0.05018806,45944.0,45943.0,0.27193216]
[1649169048555,0.05018806,45944.0,45943.0,0.04]
[1649169048656,0.05018806,45944.0,45943.0,0.27193216]
[1649169048755,0.05,45944.0,45943.0,0.04]
[1649169048856,0.05,45944.0,45942.0,0.45421861]
[1649169049457,0.05,45944.0,45942.0,0.154384]
[1649169049760,0.05,45944.0,45942.0,0.054384]
[1649169049852,0.1,45944.0,45939.0,0.4407051]
[1649169049953,0.1,45944.0,45939.0,0.4951081]
[1649169050199,0.1,45944.0,45939.0,0.38633516]
[1649169050300,0.1,45944.0,45939.0,0.33193216]
[1649169050900,0.1,45944.0,45939.0,0.1]
[1649169051101,0.41346705,45943.0,45939.0,0.1]
[1649169051302,0.46787505,45943.0,45939.0,0.1]
[1649169051502,0.163213,45943.0,45934.0,0.40140554]
[1649169051603,0.054407,45941.0,45934.0,0.30140554]
[1649169051701,0.054407,45941.0,45934.0,0.40140554]
[1649169051800,0.16322,45941.0,45934.0,0.6333377]
[1649169052506,0.16322,45941.0,45935.0,0.24016316]
[1649169052604,0.16322,45941.0,45935.0,0.24087731]
[1649169052703,0.054407,45940.0,45936.0,0.054405]
[1649169053250,0.10881,45939.0,45936.0,0.054405]
[1649169053352,0.05,45938.0,45936.0,0.054405]
[1649169053938,0.104404,45938.0,45936.0,0.054405]
[1649169054044,0.05,45938.0,45936.0,0.28633716]
[1649169054147,0.05,45938.0,45936.0,0.68657765]
[1649169054244,0.05,45938.0,45937.0,0.04]
[1649169054341,0.05,45939.0,45937.0,0.14876]
[1649169054439,0.00019205,45943.0,45937.0,0.80626]
[1649169054542,0.00019205,45943.0,45938.0,0.00056838]
[1649169054643,0.00019205,45943.0,45942.0,0.23193216]
[1649169055093,0.00019205,45943.0,45942.0,0.82944208]
[1649169055297,0.00019205,45943.0,45942.0,0.92897563]
[1649169055694,0.00019205,45943.0,45942.0,0.96897563]
[1649169055793,0.00019205,45943.0,45942.0,2.07287927]
[1649169055917,0.02,45951.0,45947.0,0.15879602]
[1649169055996,0.02,45951.0,45947.0,0.16037216]
[1649169056093,0.02,45951.0,45949.0,1.15]
[1649169056195,0.02,45951.0,45950.0,0.89828004]
[1649169056305,0.02,45951.0,45950.0,0.93828004]
[1649169056442,0.002,45965.0,45952.0,0.6575]
[1649169056641,0.002,45965.0,45952.0,0.7575]
[1649169056742,0.002,45965.0,45960.0,0.23146571]
[1649169056845,0.5,45968.0,45960.0,0.23146571]
[1649169056846,0.446,45968.0,45961.0,0.054356]
[1649169056944,0.277,45968.0,45961.0,0.05505325]
[1649169057044,0.277,45968.0,45961.0,0.054356]
[1649169057209,0.277,45968.0,45964.0,0.00054359]
[1649169057306,0.346,45969.0,45965.0,0.23146571]
[1649169057509,0.346,45969.0,45966.0,0.27865245]
[1649169057707,0.346,45969.0,45967.0,0.22605628]
[1649169057906,0.056357,45970.0,45968.0,0.23146571]
[1649169058508,0.056357,45970.0,45967.0,0.154354]
[1649169059209,0.065053,45970.0,45967.0,0.054354]
[1649169059511,0.173788,45970.0,45967.0,0.054354]
[1649169059608,0.165092,45970.0,45967.0,0.054354]
[1649169060116,0.165092,45970.0,45967.0,0.28581971]
[1649169060217,0.056357,45970.0,45967.0,0.054354]
[1649169060512,0.29925013,45969.0,45967.0,0.054354]
[1649169060615,0.05,45968.0,45965.0,0.1]
[1649169060713,0.104376,45968.0,45960.0,0.04]
[1649169060818,0.104376,45968.0,45951.0,0.23146571]
[1649169060987,0.054382,45965.0,45951.0,0.27146571]
[1649169061072,0.054382,45965.0,45951.0,0.23146571]
[1649169061271,0.054382,45965.0,45952.0,0.20094]
[1649169061674,0.104382,45965.0,45952.0,0.20094]
[1649169061770,0.104382,45965.0,45952.0,0.50224404]
[1649169061874,0.108775,45963.0,45952.0,0.50224404]
[1649169061971,0.05,45962.0,45952.0,0.50224404]
[1649169062071,0.054388,45961.0,45952.0,0.20094]
[1649169062424,0.054388,45961.0,45951.0,0.23146571]
[1649169062723,0.054388,45961.0,45953.0,0.054383]
[1649169062927,0.217551,45961.0,45953.0,0.054383]
[1649169063126,0.217551,45961.0,45956.0,0.22291034]
[1649169063227,0.05,45960.0,45956.0,0.22291034]
[1649169063328,0.05,45960.0,45956.0,0.45437605]
[1649169063627,0.104388,45961.0,45956.0,0.45437605]
[1649169063727,0.054369,45960.0,45956.0,0.45437605]
[1649169063827,0.054369,45960.0,45956.0,0.56415222]
[1649169063928,0.054369,45960.0,45956.0,0.56310828]
[1649169064029,0.054369,45960.0,45957.0,0.054369]
[1649169064231,0.05411209,45960.0,45959.0,0.23146571]
[1649169064333,0.05411209,45960.0,45956.0,0.1]
[1649169064580,0.05411209,45960.0,45951.0,0.1]
[1649169065055,0.05433929,45960.0,45951.0,0.38521372]
[1649169065252,0.21747529,45960.0,45953.0,0.3466856]
[1649169065351,0.21747529,45960.0,45953.0,0.44791794]
[1649169065453,0.05,45959.0,45953.0,0.44791794]
[1649169065559,0.05437,45958.0,45953.0,0.3923006]
[1649169065853,0.05437,45958.0,45954.0,0.24488956]
[1649169065956,0.0002272,45960.0,45954.0,0.24488956]
[1649169066054,0.0002272,45960.0,45954.0,0.90238956]
[1649169066152,0.0002272,45960.0,45954.0,0.95676416]
[1649169066253,0.0002272,45960.0,45955.0,0.80624]
[1649169066353,0.0002272,45960.0,45955.0,0.90624]
[1649169066552,0.0002272,45960.0,45955.0,0.90702711]
[1649169066753,0.0002272,45960.0,45955.0,0.90624]
[1649169066854,0.0002272,45960.0,45959.0,0.01100407]
[1649169067158,0.0867,45962.0,45961.0,0.6575]
[1649169067256,0.0867,45962.0,45961.0,0.01100251]
[1649169067357,0.0867,45962.0,45961.0,0.11100251]
[1649169067856,0.0867,45962.0,45961.0,0.15100251]
[1649169068058,0.05,45967.0,45961.0,0.15100251]
[1649169068161,0.054357,45965.0,45961.0,0.14]
[1649169068257,0.054357,45965.0,45961.0,0.125]
[1649169068448,0.054357,45965.0,45961.0,0.04]
[1649169068645,0.054357,45965.0,45962.0,0.054358]
[1649169068843,0.054357,45965.0,45963.0,0.04]
[1649169069651,0.054357,45965.0,45963.0,0.34266034]
[1649169069749,0.104357,45965.0,45963.0,0.34266034]
[1649169070151,0.104357,45965.0,45963.0,0.04]
[1649169070257,0.104357,45965.0,45960.0,0.10088463]
[1649169070357,0.104357,45965.0,45960.0,0.00088463]
[1649169071057,0.104357,45965.0,45960.0,0.04088463]
[1649169071155,0.113054,45965.0,45960.0,0.04088463]
[1649169071255,0.113054,45965.0,45961.0,0.25096908]
[1649169071354,0.113054,45965.0,45962.0,0.054358]
[1649169071456,0.104357,45965.0,45962.0,0.054358]
[1649169072057,0.054357,45965.0,45962.0,0.16306698]
[1649169072692,0.00022585,45964.0,45962.0,0.16306698]
[1649169073445,0.00022585,45964.0,45963.0,0.0008819]
[1649169075708,0.44022585,45964.0,45962.0,0.054358]
[1649169075960,0.44022585,45964.0,45960.0,0.1]
[1649169075961,0.108754,45962.0,45960.0,0.1]
[1649169076256,0.108754,45962.0,45957.0,0.108749]
[1649169076355,0.3,45961.0,45956.0,0.20016]
[1649169076504,0.3,45961.0,45953.0,0.0999]
[1649169076601,0.054384,45960.0,45953.0,0.0999]
[1649169076704,0.054384,45960.0,45945.0,0.20058]
[1649169076804,0.108769,45958.0,45952.0,0.10876]
[1649169076907,0.217535,45958.0,45952.0,0.10876]
[1649169077005,0.05,45956.0,45952.0,0.10876]
[1649169077406,0.104385,45956.0,45952.0,0.10876]
[1649169077956,0.104385,45956.0,45952.0,0.10930494]
[1649169078058,0.104385,45956.0,45952.0,0.10876]
[1649169078458,0.104385,45956.0,45953.0,0.24088017]
[1649169078611,0.104385,45956.0,45952.0,0.10876]
[1649169078908,0.113083,45956.0,45952.0,0.10932526]
[1649169079009,0.113083,45956.0,45953.0,0.30708336]
[1649169079210,0.104385,45956.0,45953.0,0.40708336]
[1649169079409,0.104385,45956.0,45954.0,0.054373]
[1649169080251,0.104385,45956.0,45948.0,0.008697]
[1649169080355,0.054392,45954.0,45948.0,0.008697]
[1649169080598,0.054392,45953.0,45947.0,0.108772]
[1649169080699,0.054392,45953.0,45945.0,0.28640939]
[1649169081047,0.054392,45953.0,45947.0,0.05439]
[1649169081350,0.054392,45952.0,45947.0,0.05439]
[1649169081556,0.104392,45952.0,45947.0,0.05439]
[1649169082750,0.10461564,45952.0,45947.0,0.05439]
[1649169083499,0.10461564,45952.0,45947.0,0.27227305]
[1649169083600,0.10461564,45952.0,45947.0,0.27281078]
[1649169083749,0.10461564,45952.0,45947.0,0.27227305]
[1649169084049,0.10461564,45952.0,45948.0,0.108757]
[1649169084400,0.10461564,45952.0,45948.0,0.408757]
[1649169084658,0.10461564,45952.0,45948.0,0.508757]
[1649169084801,0.00022364,45952.0,45948.0,0.508757]
[1649169085003,0.00022364,45952.0,45948.0,1.166257]
[1649169085201,0.00022364,45952.0,45951.0,0.01087548]
[1649169085303,0.00022364,45952.0,45951.0,0.57384165]
[1649169085400,0.00022364,45952.0,45951.0,0.87384165]
[1649169085506,0.00022364,45952.0,45951.0,0.97384165]
[1649169085601,0.00022364,45952.0,45951.0,1.02820765]
[1649169085703,0.00022364,45952.0,45951.0,1.01733217]
[1649169085802,0.00016364,45952.0,45951.0,1.01733217]
[1649169086002,0.00016364,45952.0,45951.0,1.67483217]
[1649169086103,0.00016364,45952.0,45951.0,1.68570623]
[1649169086220,0.00016364,45952.0,45951.0,1.67483217]
[1649169086807,0.00016364,45952.0,45951.0,1.71483217]
[1649169086906,0.054363,45956.0,45953.0,0.6575]
[1649169087007,0.163089,45961.0,45956.0,0.108719]
[1649169087109,0.0867,45972.0,45957.0,0.3]
[1649169087253,0.5,45967.0,45963.0,0.22797275]
[1649169087744,0.0867,45972.0,45963.0,0.22797275]
[1649169088148,0.29464947,45971.0,45959.0,0.04]
[1649169088250,0.0867,45972.0,45959.0,0.04]
[1649169088347,0.5867,45972.0,45959.0,0.04]
[1649169088548,0.1,45963.0,45962.0,0.054356]
[1649169089699,0.1,45963.0,45960.0,0.054376]
[1649169089799,0.163131,45962.0,45960.0,0.054376]
[1649169090398,0.43584545,45962.0,45960.0,0.054376]
[1649169090500,0.163131,45962.0,45960.0,0.054376]
[1649169090799,0.163131,45962.0,45960.0,0.05502232]
[1649169091051,0.163131,45962.0,45960.0,0.054376]
[1649169091150,0.163131,45962.0,45961.0,0.00121327]
[1649169094108,0.10020614,45963.0,45961.0,0.00121327]
[1649169094204,0.10020614,45963.0,45961.0,0.28563846]
[1649169094505,0.10890314,45963.0,45961.0,0.00121327]
[1649169094851,0.10020614,45963.0,45961.0,0.00121327]
[1649169095050,0.00020596,45962.0,45961.0,0.00121327]
[1649169095253,0.00020596,45962.0,45961.0,3.27e-06]
[1649169095353,0.00020596,45962.0,45953.0,0.108755]
[1649169095454,0.054382,45961.0,45946.0,1.10275664]
[1649169095558,0.054382,45961.0,45944.0,0.62815664]
[1649169095652,0.054382,45961.0,45944.0,0.35645664]
[1649169095755,0.054382,45961.0,45943.0,0.65645664]
[1649169095852,0.104382,45961.0,45943.0,0.65645664]
[1649169095950,0.154382,45961.0,45944.0,0.31829271]
[1649169096051,0.108768,45958.0,45947.0,0.31400845]
[1649169096250,0.208768,45958.0,45949.0,0.108765]
[1649169096753,0.054382,45955.0,45949.0,0.108765]
[1649169096852,0.104382,45955.0,45949.0,0.108765]
[1649169096953,0.104382,45955.0,45950.0,0.31829271]
[1649169097604,0.05,45955.0,45950.0,0.31829271]
[1649169097853,0.208768,45958.0,45950.0,0.61829271]
[1649169097953,0.008698,45955.0,45953.0,0.108748]
[1649169098258,0.208768,45958.0,45953.0,0.108748]
[1649169098353,0.208768,45958.0,45954.0,0.26761459]
[1649169098502,0.054374,45957.0,45954.0,0.26761459]
[1649169098699,0.049374,45957.0,45954.0,0.26761459]
[1649169098903,0.04957904,45957.0,45954.0,0.26761459]
[1649169099703,0.04957904,45957.0,45954.0,0.32198806]
[1649169099801,0.04957904,45957.0,45955.0,0.054373]
[1649169101559,0.04957904,45957.0,45955.0,0.05517896]
[1649169105806,0.0031922,45956.0,45955.0,0.054373]
[1649169106840,0.00341893,45956.0,45955.0,0.054373]
[1649169107653,0.00341893,45956.0,45953.0,0.10955452]
[1649169107746,0.00341893,45956.0,45953.0,0.00080652]
[1649169107895,0.00341893,45956.0,45944.0,0.35645664]
[1649169107994,0.054398,45952.0,45943.0,0.38925664]
[1649169108097,0.054398,45952.0,45945.0,0.31839712]
[1649169108694,0.054398,45952.0,45946.0,0.05439007]
[1649169108795,0.104398,45952.0,45946.0,0.05439007]
[1649169109099,0.054398,45951.0,45946.0,0.05439007]
[1649169109750,0.1,45952.0,45947.0,0.3]
[1649169109833,0.5087,45953.0,45947.0,0.463124]
[1649169109937,0.5,45953.0,45947.0,0.463124]
[1649169110033,0.5,45953.0,45948.0,0.31840152]
[1649169110034,0.42075983,45953.0,45948.0,0.31840152]
[1649169110137,0.42075983,45953.0,45949.0,0.31421632]
[1649169110235,0.42075983,45953.0,45950.0,0.3]
[1649169110333,0.42075983,45953.0,45950.0,0.30058132]
[1649169110439,0.42075983,45953.0,45950.0,0.3]
[1649169110588,0.00319144,45955.0,45951.0,0.30748462]
[1649169110688,0.00319144,45955.0,45951.0,0.30802643]
[1649169110788,0.00319144,45955.0,45952.0,0.16311044]
[1649169110894,0.00319144,45955.0,45953.0,0.054371]
[1649169111042,0.00319144,45955.0,45953.0,0.10874192]
[1649169112087,0.00319144,45955.0,45954.0,0.163097]
[1649169112287,0.05,45962.0,45954.0,0.163097]
[1649169112392,0.1,45962.0,45956.0,0.10374447]
[1649169112489,0.59853098,45962.0,45957.0,0.054373]
[1649169112689,0.59853098,45962.0,45957.0,0.1087446]
[1649169112789,0.59853098,45962.0,45958.0,0.108744]
[1649169112892,0.59853098,45962.0,45960.0,0.31211654]
[1649169112990,0.5,45962.0,45960.0,0.31211654]
[1649169113093,0.5,45962.0,45961.0,0.34035084]
[1649169113338,0.5,45962.0,45961.0,0.44035084]
[1649169113448,0.508697,45962.0,45961.0,0.1282343]
[1649169113649,0.508697,45962.0,45961.0,0.44034985]
[1649169113749,0.5,45962.0,45961.0,0.41211555]
[1649169113852,0.5,45962.0,45961.0,0.1282343]
[1649169113950,0.00318841,45963.0,45961.0,0.1282343]
[1649169114048,0.00318841,45963.0,45961.0,0.54908408]
[1649169114250,0.00318841,45963.0,45962.0,0.31211414]
[1649169114349,0.00318841,45963.0,45962.0,0.1]
[1649169114450,0.00318841,45963.0,45962.0,0.34032354]
[1649169114550,0.494366,45964.0,45961.0,0.42084978]
[1649169114853,0.1,45963.0,45961.0,0.42084978]
[1649169115357,0.1,45963.0,45961.0,0.10873564]
[1649169116654,0.1031975,45963.0,45961.0,0.10873564]
[1649169117399,0.1118945,45963.0,45961.0,0.10873564]
[1649169117701,0.1031975,45963.0,45961.0,0.10873564]
[1649169118153,0.1031975,45963.0,45962.0,0.26752849]
[1649169118504,0.1031975,45963.0,45961.0,0.42084978]
[1649169118606,0.0031975,45963.0,45961.0,0.52084978]
[1649169118701,0.0031975,45963.0,45962.0,0.04811644]
[1649169118803,0.0025075,45963.0,45962.0,0.04811644]
[1649169118905,0.0025075,45963.0,45962.0,0.34811644]
[1649169119105,0.0025075,45963.0,45962.0,0.48811644]
[1649169119404,0.0025075,45963.0,45962.0,0.82644992]
[1649169119603,0.0025075,45963.0,45962.0,0.48811644]
[1649169120057,0.0525075,45963.0,45962.0,0.48811644]
[1649169120157,0.1025075,45963.0,45962.0,0.48811644]
[1649169120255,0.1025075,45963.0,45962.0,0.18811644]
[1649169120366,0.1031975,45963.0,45962.0,0.08811644]
[1649169120557,0.1031975,45963.0,45962.0,0.04811644]
[1649169121158,0.1118945,45963.0,45962.0,0.36019678]
[1649169121351,0.1118945,45963.0,45962.0,0.41211114]
[1649169121446,0.1118945,45963.0,45962.0,0.1]
[1649169121546,0.1031975,45963.0,45962.0,0.1]
[1649169121948,0.1031975,45963.0,45961.0,0.31211114]
[1649169122047,0.1031975,45963.0,45962.0,0.26753622]
[1649169122301,0.10622249,45963.0,45962.0,0.26753622]
[1649169122651,0.10645051,45963.0,45962.0,0.26753622]
[1649169123048,0.52879946,45964.0,45962.0,0.26753622]
[1649169123148,0.1,45963.0,45962.0,0.26753622]
[1649169123351,0.1,45963.0,45961.0,0.26897158]
[1649169123852,0.1,45963.0,45962.0,0.26753622]
[1649169124302,0.10414833,45963.0,45962.0,0.26753622]
[1649169125000,0.10414833,45963.0,45961.0,0.00143536]
[1649169125099,0.11284633,45963.0,45961.0,0.00143536]
[1649169125200,0.11307429,45963.0,45961.0,0.00143536]
[1649169125403,0.10437629,45963.0,45961.0,0.00143536]
[1649169125602,0.10437629,45963.0,45962.0,0.26752866]
[1649169126257,0.10022796,45963.0,45962.0,0.26752866]
[1649169126857,0.10022796,45963.0,45961.0,0.00143536]
[1649169127456,0.10022796,45963.0,45961.0,0.3135465]
[1649169127556,0.10022796,45963.0,45961.0,0.00143536]
[1649169127756,0.10022796,45963.0,45961.0,0.3135465]
[1649169127855,0.10022796,45963.0,45961.0,0.38589206]
[1649169127957,0.10022796,45963.0,45961.0,0.3135465]
[1649169128757,0.10022796,45963.0,45961.0,0.00143536]
[1649169128952,0.3,45962.0,45961.0,0.00143536]
[1649169129449,0.10022796,45963.0,45961.0,0.00143536]
[1649169129848,0.20898696,45963.0,45961.0,0.00143536]
[1649169131058,0.00018984,45962.0,45961.0,0.00143536]
[1649169131257,0.09883093,45963.0,45961.0,0.00143536]
[1649169132005,0.09883093,45963.0,45961.0,0.28641962]
[1649169132604,0.09883093,45963.0,45961.0,0.28498426]
[1649169132706,0.09883093,45963.0,45960.0,0.47521071]
[1649169132909,0.09883093,45963.0,45960.0,0.16309957]
[1649169133007,0.09883093,45963.0,45960.0,0.47521071]
[1649169133106,0.09883093,45963.0,45962.0,0.26753258]
[1649169133206,0.09883093,45963.0,45960.0,0.58044584]
[1649169133207,0.09883093,45963.0,45961.0,0.31211114]
[1649169133305,0.09883093,45963.0,45961.0,0.41734473]
[1649169133657,0.09883093,45963.0,45961.0,0.69402548]
[1649169133858,0.09883093,45963.0,45961.0,0.58879189]
[1649169134960,0.09883093,45963.0,45962.0,0.41734648]
[1649169135263,0.09883093,45963.0,45960.0,0.36648271]
[1649169135362,0.054373,45962.0,45960.0,0.36648271]
[1649169135458,0.054373,45962.0,45960.0,0.46648271]
[1649169135558,0.104373,45962.0,45960.0,0.46648271]
[1649169136750,0.104373,45962.0,45960.0,0.05437157]
[1649169137755,0.104373,45962.0,45961.0,0.26757062]
[1649169138108,0.104373,45962.0,45960.0,0.31194219]
[1649169138206,0.104373,45962.0,45960.0,0.25757062]
[1649169138406,0.104373,45962.0,45959.0,0.20873329]
[1649169138956,0.00015801,45961.0,45959.0,0.20873329]
[1649169139310,0.00015801,45961.0,45959.0,0.10873329]
[1649169139508,0.30015801,45961.0,45959.0,0.10873329]
[1649169139609,0.30015801,45961.0,45956.0,0.31211114]
[1649169139717,0.52351,45960.0,45959.0,0.22299291]
[1649169139840,0.52351,45960.0,45954.0,0.31211114]
[1649169139841,0.87351,45960.0,45957.0,0.22299291]
[1649169139920,0.87351,45960.0,45955.0,0.22299291]
[1649169140019,0.0315592,45959.0,45949.0,0.31211114]
[1649169140118,0.32351,45958.0,45949.0,0.31211114]
[1649169140319,0.30030418,45952.0,45949.0,0.31211114]
[1649169140422,0.32351,45951.0,45949.0,0.31211114]
[1649169140619,0.37351,45951.0,45949.0,0.31211114]
[1649169140718,0.32351,45950.0,45946.0,0.31211114]
[1649169140821,0.32351,45949.0,45945.0,0.31211114]
[1649169140920,0.1044,45949.0,45945.0,0.31211114]
[1649169141021,0.1588,45949.0,45946.0,0.31211114]
[1649169141122,0.37351,45948.0,45945.0,0.31211114]
[1649169141220,0.1588,45948.0,45945.0,0.31211114]
[1649169141319,0.1588,45948.0,45943.0,0.31211114]
[1649169141320,0.32351,45947.0,45943.0,0.31211114]
[1649169141423,0.05,45947.0,45943.0,0.31211114]
[1649169141523,0.1,45947.0,45942.0,0.31211114]
[1649169141620,0.23370236,45946.0,45942.0,0.31211114]
[1649169141724,0.05,45947.0,45942.0,0.55079261]
[1649169141823,0.05,45946.0,45942.0,0.55079261]
[1649169142172,0.2088,45948.0,45942.0,0.55079261]
[1649169142473,0.2088,45948.0,45943.0,0.38949304]
[1649169142573,0.2088,45948.0,45942.0,0.55079261]
[1649169142672,0.1088,45947.0,45943.0,0.38949288]
[1649169142873,0.05,45946.0,45943.0,0.38949288]
[1649169143074,0.05,45946.0,45942.0,0.55079261]
[1649169143178,0.05,45946.0,45943.0,0.31211114]
[1649169143277,0.05,45946.0,45943.0,0.40317157]
[1649169143469,0.05,45946.0,45942.0,0.65957458]
[1649169143559,0.008701,45947.0,45943.0,0.31211114]
[1649169143760,0.008701,45947.0,45944.0,0.31211114]
[1649169143859,0.00017555,45948.0,45945.0,0.31211114]
[1649169144023,0.00017555,45948.0,45945.0,0.45752989]
[1649169144212,0.00017555,45948.0,45945.0,0.3664949]
[1649169144812,0.00017555,45948.0,45946.0,0.054384]
[1649169144912,0.00017555,45948.0,45946.0,0.16315802]
[1649169145865,0.00017555,45948.0,45946.0,0.60501499]
[1649169145964,0.00010387,45948.0,45947.0,0.40312592]
[1649169146165,0.00010387,45948.0,45947.0,0.50312592]
[1649169146969,0.05455937,45956.0,45947.0,0.1]
[1649169147072,0.10455937,45956.0,45949.0,0.054386]
[1649169147207,0.32351,45955.0,45952.0,0.22838257]
[1649169148111,0.32351,45955.0,45947.0,0.26745143]
[1649169148211,0.3,45954.0,45947.0,0.26745143]
[1649169148309,0.35,45954.0,45947.0,0.26745143]
[1649169148411,0.054396,45953.0,45947.0,0.26745143]
[1649169148509,0.054396,45952.0,45947.0,0.26745143]
[1649169148711,0.054396,45952.0,45948.0,0.05439509]
[1649169148811,0.104396,45952.0,45948.0,0.05439509]
[1649169149115,0.104396,45952.0,45948.0,0.28029195]
[1649169149363,0.104396,45952.0,45950.0,0.22272692]
[1649169149460,0.104396,45952.0,45948.0,0.28029195]
[1649169150269,0.104396,45952.0,45948.0,0.28023195]
[1649169150817,0.32351,45951.0,45948.0,0.28023195]
[1649169150953,0.00016416,45951.0,45948.0,0.28023195]
[1649169151051,0.05016416,45951.0,45948.0,0.28023195]
[1649169151151,0.00016416,45951.0,45948.0,0.28023195]
[1649169151254,0.05016416,45951.0,45948.0,0.28023195]
[1649169151660,0.00016416,45951.0,45948.0,0.33461895]
[1649169152454,0.00016416,45951.0,45948.0,0.60207038]
[1649169152555,0.00016416,45951.0,45948.0,0.33461895]
[1649169152857,0.00016416,45951.0,45948.0,0.28023195]
[1649169152956,0.05439,45953.0,45948.0,0.28023195]
[1649169153256,0.04939,45953.0,45949.0,0.28627833]
[1649169153356,0.04939,45953.0,45948.0,0.28023195]
[1649169153758,0.32351,45952.0,45948.0,0.28023195]
[1649169153862,0.32351,45951.0,45948.0,0.28023195]
[1649169153959,0.32351,45950.0,45948.0,0.28023195]
[1649169154056,0.32351,45949.0,45948.0,0.28023195]
[1649169154162,0.1,45950.0,45948.0,0.28023195]
[1649169154256,0.054397,45951.0,45948.0,0.28023195]
[1649169154257,0.32351,45949.0,45948.0,0.28023195]
[1649169154356,0.05,45950.0,45948.0,0.28023195]
[1649169154458,0.1,45950.0,45948.0,0.28023195]
[1649169154559,0.32351,45949.0,45948.0,0.28023195]
[1649169154813,0.05,45950.0,45948.0,0.28023195]
[1649169154915,0.32351,45949.0,45948.0,0.28023195]
[1649169155013,0.1,45950.0,45948.0,0.28023195]
[1649169155213,0.05,45950.0,45948.0,0.28023195]
[1649169155316,0.05842675,45950.0,45948.0,0.28023195]
[1649169155514,0.10842675,45950.0,45948.0,0.28023195]
[1649169155616,0.09972575,45950.0,45948.0,0.28023195]
[1649169156016,0.04972575,45950.0,45948.0,0.28023195]
[1649169156119,0.09972575,45950.0,45948.0,0.28023195]
[1649169156517,0.04972575,45950.0,45948.0,0.28023195]
[1649169156617,0.09972575,45950.0,45948.0,0.28023195]
[1649169157518,0.04972575,45950.0,45948.0,0.28023195]
[1649169157618,0.09972575,45950.0,45948.0,0.28023195]
[1649169158020,0.04972575,45950.0,45948.0,0.28023195]
[1649169158222,0.09963878,45950.0,45948.0,0.28023195]
[1649169158330,0.09963878,45950.0,45948.0,0.05433509]